Cogmind - Beta 17 @@@ ROGUE MODE // 2026.07.29 @ 12:09:09 Player: 4R-ZE3 Result: Self-destructed Performance ------------- Evolutions (3) 1500 Regions Visited (6) 1200 Robots Destroyed (26) 130 Value Destroyed (349) 349 Prototype IDs (15) 300 Alien Tech Used (0) 0 Bonus (180) 180 TOTAL SCORE: 3659 Bonus ------- Follower Combat Kills 180 Cogmind --------- Core Integrity 647/700 Matter 215/300 Energy 238/240 System Corruption 0% Temperature Cool (4) Movement Flying (26) Location -7/Factory Parts ------- > --- POWER (1) -------- Nuclear Core > --- PROPULSION (5) --- Cesium-ion Thruster Cesium-ion Thruster Cesium-ion Thruster Cesium-ion Thruster Cesium-ion Thruster > --- UTILITY (5) ------ Improved Terrain Scanner Improved Terrain Scan Processor Advanced ECM Suite Hardened Medium Armor Plating System Shield > --- WEAPON (2) ------- Backup Laser III > --- INVENTORY (5) ---- Hardened Medium Armor Plating Hardened Medium Armor Plating Improved Medium Armor Plating Component Analysis Suite Power Bank Peak State ------------ > --- POWER ------------ Backup Power III > --- PROPULSION ------- Cesium-ion Thruster Cesium-ion Thruster Cesium-ion Thruster Cesium-ion Thruster Nuclear Pulse Thruster > --- UTILITY ---------- Advanced ECM Suite Backup Plating III Hardened Medium Armor Plating Hardened Medium Armor Plating System Shield > --- WEAPON ----------- Backup Laser III Backup Laser III > --- INVENTORY -------- Cesium-ion Thruster Huge Storage Unit Hardlight Generator Power Bank [Rating: 43] Favorites ----------- Power Light Ion Engine Engine Light Ion Engine Power Core Nuclear Core Propulsion Light Treads Treads Light Treads Wheel Wheel Flight Unit Cesium-ion Thruster Utility Huge Storage Unit Device Seismic Detector Storage Huge Storage Unit Processor Improved Terrain Scan Processor Hackware System Shield Protection Light Armor Plating Weapon Light Assault Rifle Energy Gun Backup Laser III Ballistic Gun Light Assault Rifle Special Weapon Mining Laser Build | -11 -10 -10 -8 -7 -7 -7 ------- Run | Yrd Mat Sub Mat Fac Was Fac Slots Evolved 6 | . . . 4 2 . . Power . | . . . . . . . Propulsion 3 | . . . 2 1 . . Utility 3 | . . . 2 1 . . Weapon . | . . . . . . . Parts Attached 37 | 6 6 5 6 . 9 5 Power 4 | 1 1 1 . . . 1 Engine 3 | 1 1 1 . . . . Core 1 | . . . . . . 1 Reactor . | . . . . . . . Propulsion 15 | 2 1 . 4 . 7 1 Treads 6 | 2 1 . 2 . 1 . Leg . | . . . . . . . Wheel 3 | . . . 2 . 1 . Hover . | . . . . . . . Flight 6 | . . . . . 5 1 Utility 13 | 1 3 2 2 . 2 3 Device 5 | . . 2 1 . . 2 Storage 3 | 1 2 . . . . . Processor 1 | . . . . . . 1 Hackware 1 | . . . 1 . . . Protection 3 | . 1 . . . 2 . Artifact . | . . . . . . . Weapon 5 | 2 1 2 . . . . Energy Gun . | . . . . . . . Energy Cannon . | . . . . . . . Ballistic Gun 4 | 2 . 2 . . . . Ballistic Cannon . | . . . . . . . Launcher . | . . . . . . . Special Weapon 1 | . 1 . . . . . Impact Weapon . | . . . . . . . Slashing Weapon . | . . . . . . . Piercing Weapon . | . . . . . . . Special Melee Weapon . | . . . . . . . Unidentified Prototypes 1 | . . 1 . . . . Parts Lost 4 | . 1 1 . . 1 1 Power 2 | . 1 1 . . . . Propulsion 2 | . . . . . 1 1 Utility . | . . . . . . . Weapon . | . . . . . . . Highest Loss Streak 1 | . 1 1 . . 1 1 To Critical Strikes . | . . . . . . . Average Backups 16 | 2 13 22 24 24 4 4 Power . | . . . . . . . Propulsion 5 | 1 3 9 8 8 . . Utility 1 | . 1 1 3 3 3 4 Weapon 8 | . 7 11 13 13 . . Tool/Special . | . . . . . . . Unused Backups 26 | . . . 3 . 19 4 Power . | . . . . . . . Propulsion 9 | . . . 2 . 7 . Utility 5 | . . . . . 1 4 Weapon 12 | . . . 1 . 11 . Tool/Special . | . . . . . . . Average Slot Usage (%) 96 | . 99 99 92 90 53 91 Engine 12 | . 13 13 9 7 3 5 Treads 24 | . 28 27 13 15 4 . Wheel 3 | . . . 21 21 13 . Flight 1 | . . . . . 9 38 Device 7 | . . 12 17 15 1 11 Storage 12 | . 14 14 9 7 . . Hackware 1 | . . . 3 7 7 7 Protection 6 | . 13 1 . . 4 13 Ballistic Gun 21 | . 26 24 13 15 . . Special Weapon 2 | . 1 3 4 . . . Peak Build Rating 43 | 6 9 20 34 35 36 43 Average Rating 13 | 5 7 12 29 34 18 38 On Entrance 20 | . 6 9 20 34 35 36 Avg Prop Armor Cover (%) 19 | . . 12 12 16 39 2 Naked Turns . | . . . . . . . Heaviest Build 102 | 11 89 94 102 102 22 25 Greatest Support 40 | 40 40 40 30 30 36 30 Greatest Overweight (x) 9 | 3 2 9 9 5 1 . Average Overweight (x) 1 | . . 2 3 3 . . Largest Inventory Capacity 25 | 8 25 25 25 25 5 5 Average Capacity 20 | 7 18 25 25 25 5 5 Most Carried 25 | 5 21 25 25 25 5 5 Average Carried 16 | 2 13 22 24 24 4 4 Final Capacity 25 | 8 25 25 25 25 5 5 Final Carried 25 | 5 21 25 25 25 4 5 Transmogrified Parts 3 | . . 2 1 . . . Integrity Recovered 3 | . . 3 . . . . Class Distribution -------------------- 94% | Mutant 5% | Scavenger-Sprinter Dominant Class ---------------- Mutant | -10/Materials Mutant | -10/Subcaves Mutant | -8/Materials Mutant | -7/Factory Mutant | -7/Waste Scavenger-Sprinter | -7/Factory Resources | -11 -10 -10 -8 -7 -7 -7 ----------- Run | Yrd Mat Sub Mat Fac Was Fac Matter Collected 868 | 356 213 99 70 . 130 . Remotely . | . . . . . . . Salvage Created 702 | 257 401 44 . . . . Parts 55 | 21 33 1 . . . . Haulers Intercepted 2 | . 2 . . . . . Recyclers Shooed . | . . . . . . . Parts Field Recycled . | . . . . . . . Retrieved Matter . | . . . . . . . Parts Self-Destructed 5 | . . 5 . . . . Prevented . | . . . . . . . Parts Restored . | . . . . . . . Kills | -11 -10 -10 -8 -7 -7 -7 ------- Run | Yrd Mat Sub Mat Fac Was Fac Combat Hostiles Destroyed 11 | . 10 1 . . . . Guns 11 | . 10 1 . . . . Classes Destroyed 8 | 3 4 1 . . . . Worker 2 | 2 . . . . . . Tunneler 8 | 8 . . . . . . Hauler 2 | . 2 . . . . . Recycler 1 | 1 . . . . . . Operator 2 | . 2 . . . . . Swarmer 6 | . 6 . . . . . Grunt 4 | . 4 . . . . . Subdweller 1 | . . 1 . . . . Best Kill Streak 3 | 3 3 1 . . . . Combat Bots Only 3 | . 3 1 . . . . Max Kills in Single Turn 1 | 1 1 1 . . . . Gunslinging . | . . . . . . . Exploded . | . . . . . . . Melee . | . . . . . . . Uniques/NPCs Destroyed . | . . . . . . . Combat | -11 -10 -10 -8 -7 -7 -7 -------- Run | Yrd Mat Sub Mat Fac Was Fac Hostile Shots Fired 91 | . 49 8 . . 1 33 Missed 39 | . 15 1 . . . 23 Hits 52 | . 34 7 . . 1 10 Melee 1 | . . . . . 1 . Projectile 51 | . 34 7 . . . 10 Critical Strikes 2 | . 1 . . . 1 . Damage Taken 590 | . 311 148 . . 53 78 Core 109 | . 35 21 . . 53 . Absorbed by Shields . | . . . . . . . Regen/Repaired (Parts) 12 | . . . . . 12 . Core Remaining (%) 92 | 100 . 77 100 . . . Volleys Fired 80 | 24 42 12 1 . 1 . Largest 2 | 2 2 2 1 . 2 . Hottest 100 | 40 100 100 100 . 80 . Shots Fired 148 | 48 79 18 1 . 2 . Gun 136 | 48 74 12 . . 2 . Cannon . | . . . . . . . Launcher . | . . . . . . . Special 12 | . 5 6 1 . . . Kinetic 134 | 48 74 12 . . . . Thermal 14 | . 5 6 1 . 2 . Explosive . | . . . . . . . Electromagnetic . | . . . . . . . Robot Hit Streak 10 | 10 8 6 . . 2 . Robot Miss Streak 3 | 2 3 1 1 . . . Penetration Max . | . . . . . . . Secondary Targets 1 | . 1 . . . . . Max Gunslinging Chain 1 | . 1 . . . . . Shots Hit Robots 86 | 28 49 7 . . 2 . Core Hits 41 | 14 24 3 . . . . Critical Kills 2 | . 2 . . . . . Critical Parts Destroyed 1 | 1 . . . . . . Critical Strikes 3 | 1 2 . . . . . Destroy 3 | 1 2 . . . . . Melee Attacks . | . . . . . . . Impact . | . . . . . . . Slashing . | . . . . . . . Piercing . | . . . . . . . Sneak Attacks . | . . . . . . . Combat Hostiles . | . . . . . . . Follow-up Attacks . | . . . . . . . Damage Inflicted 911 | 292 523 72 . . 24 . Guns 911 | 292 523 72 . . 24 . Cannons . | . . . . . . . Explosions . | . . . . . . . Melee . | . . . . . . . Ramming . | . . . . . . . Kinetic 887 | 292 523 72 . . . . Thermal 24 | . . . . . 24 . Explosive . | . . . . . . . Electromagnetic . | . . . . . . . Impact . | . . . . . . . Slashing . | . . . . . . . Piercing . | . . . . . . . Highest Corruption . | . . . . . . . Average Corruption . | . . . . . . . Corruption Purged . | . . . . . . . Corruption Blocked . | . . . . . . . Overload Shots . | . . . . . . . Overflow Damage . | . . . . . . . Projectiles . | . . . . . . . Explosions . | . . . . . . . Melee . | . . . . . . . Knockbacks . | . . . . . . . Impact . | . . . . . . . Kinetic . | . . . . . . . Secondary . | . . . . . . . Self-Inflicted Damage . | . . . . . . . Shots . | . . . . . . . Rammed . | . . . . . . . Targets Rammed . | . . . . . . . Kicked . | . . . . . . . Crushed . | . . . . . . . Highest Temperature 107 | . 64 . . . 45 107 Average Temperature 29 | . 14 . . . 20 44 Received Heat Transfer 132 | . 60 42 . . . 30 Siege Activations . | . . . . . . . Martial Activations . | . . . . . . . Shielding Activations . | . . . . . . . Robots Disrupted . | . . . . . . . Combat Hostiles . | . . . . . . . Robots Corrupted . | . . . . . . . Combat Hostiles . | . . . . . . . Parts Fried . | . . . . . . . Impact Corruptions . | . . . . . . . Robots Melted . | . . . . . . . Combat Hostiles . | . . . . . . . Parts Melted . | . . . . . . . Heat Transferred 74 | . . . . . 74 . Parts Sabotaged . | . . . . . . . Parts Stolen . | . . . . . . . Parts Stripped . | . . . . . . . Power Chain Reactions . | . . . . . . . Alert | -11 -10 -10 -8 -7 -7 -7 ------- Run | Yrd Mat Sub Mat Fac Was Fac Maximum Alert Level . | . . . . . . . Low Security (%) 100 | 100 100 . 100 100 100 100 Level 1 . | . . . . . . . Level 2 . | . . . . . . . Level 3 . | . . . . . . . Level 4 . | . . . . . . . Level 5 . | . . . . . . . High Security . | . . . . . . . Max Security . | . . . . . . . Peak Influence 119 | 15 119 . 3 . 13 30 Initial . | . . . . . . . Average 16 | 2 27 . . . . 4 Influence Increases 494 | 55 347 . 13 . 37 42 Destroy 0b10 Robot/C 200 | . 200 . . . . . Destroy 0b10 Robot/NC 75 | 55 20 . . . . . Destroy Leader 44 | . 44 . . . . . Successful Hack 58 | . 33 . 13 . . 12 Destroy Structure 42 | . 5 . . . 37 . Lose Combat Pursuer 75 | . 45 . . . . 30 Influence Decreases 474 | 55 347 . 10 3 37 22 Entered New Map 3 | . . . . 3 . . Time Decay 459 | 55 347 . 10 . 25 22 Lost Ally 12 | . . . . . 12 . Squads Dispatched 6 | . 1 . 3 1 . 1 Investigation 1 | . . . . . . 1 Extermination . | . . . . . . . Reinforcement 5 | . 1 . 3 1 . . Assault . | . . . . . . . Garrison . | . . . . . . . Intercept . | . . . . . . . Searches Triggered . | . . . . . . . Construction Impeded . | . . . . . . . Haulers Reinforced . | . . . . . . . Active Scanning Responses . | . . . . . . . Cargo Convoy Interrupts . | . . . . . . . Stealth | -11 -10 -10 -8 -7 -7 -7 --------- Run | Yrd Mat Sub Mat Fac Was Fac Distress Signals 3 | . 2 . . 1 . . Communications Jammed . | . . . . . . . Distress Signals . | . . . . . . . Times Spotted 40 | . 25 1 4 2 6 2 Peak Tracking Total 6 | . 6 1 2 3 5 2 Tactical Retreats 4 | . 3 . . . . 1 Traps | -11 -10 -10 -8 -7 -7 -7 ------- Run | Yrd Mat Sub Mat Fac Was Fac Traps Triggered 2 | . . . . 1 . 1 Indirectly . | . . . . . . . Trap Hack Attempts . | . . . . . . . Triggered . | . . . . . . . Disarmed . | . . . . . . . Reprogrammed . | . . . . . . . Reused . | . . . . . . . Traps Extracted . | . . . . . . . Installed . | . . . . . . . Triggered . | . . . . . . . Machines | -11 -10 -10 -8 -7 -7 -7 ---------- Run | Yrd Mat Sub Mat Fac Was Fac Machines Disabled 1 | . . 1 . . . . Max in Single Turn 1 | . . 1 . . . . Machines Repaired . | . . . . . . . Machines Dismantled . | . . . . . . . Machines Sabotaged . | . . . . . . . Overloaded Fab Kills . | . . . . . . . Hacking | -11 -10 -10 -8 -7 -7 -7 --------- Run | Yrd Mat Sub Mat Fac Was Fac Machines Accessed 21 | . 8 3 2 3 . 5 Terminals 13 | . 7 . 2 1 . 3 Fabricators . | . . . . . . . Repair Stations . | . . . . . . . Recycling Units 4 | . 1 . . 2 . 1 Scanalyzers 1 | . . . . . . 1 Garrison Access . | . . . . . . . Total Hacks 47 | . 15 12 6 5 . 9 Successful 26 | . 9 12 3 . . 2 Failed 21 | . 6 . 3 5 . 7 Catastrophic 7 | . . . 1 3 . 3 Database Lockouts . | . . . . . . . Manual 18 | . 10 . 6 . . 2 Terminals 25 | . 13 . 6 1 . 5 Fabricators . | . . . . . . . Repair Stations . | . . . . . . . Recycling Units 9 | . 2 . . 4 . 3 Scanalyzers 1 | . . . . . . 1 Garrison Access . | . . . . . . . Terminal Hacks 21 | . 5 12 3 . . 1 Record 9 | . . 9 . . . . Robot Analysis 4 | . 3 . 1 . . . Open Door 1 | . . 1 . . . . Branch Access Points 2 | . . . 1 . . 1 Unreport Threat 1 | . . . 1 . . . Locate Traps 1 | . 1 . . . . . Hauler Manifests 1 | . 1 . . . . . Proto ID Catalog 1 | . . 1 . . . . Release Object 1 | . . 1 . . . . Fabricator Hacks . | . . . . . . . Repair Station Hacks . | . . . . . . . Recycling Unit Hacks 1 | . 1 . . . . . Retrieve Components 1 | . 1 . . . . . Scanalyzer 1 | . . . . . . 1 Retrieve Study 1 | . . . . . . 1 Garrison Access Hacks . | . . . . . . . Unauthorized Hacks 3 | . 3 . . . . . Terminals 3 | . 3 . . . . . Botnet 3 | . 3 . . . . . Fabricators . | . . . . . . . Repair Stations . | . . . . . . . Recycling Units . | . . . . . . . Scanalyzers . | . . . . . . . Garrison Access . | . . . . . . . Data Cores Recovered 1 | . 1 . . . . . Used . | . . . . . . . Hacking Detections 14 | . 6 . 1 3 . 4 Full Trace Events . | . . . . . . . Feedback Events . | . . . . . . . Feedback Blocked . | . . . . . . . Robot Schematics Acquired . | . . . . . . . Robots Built . | . . . . . . . Authchips . | . . . . . . . Time . | . . . . . . . Total Robot Build Rating . | . . . . . . . Part Schematics Acquired . | . . . . . . . Parts Built . | . . . . . . . Authchips . | . . . . . . . Time . | . . . . . . . Total Part Build Rating . | . . . . . . . Part Studies Acquired 1 | . . . . . . 1 Parts Repaired . | . . . . . . . Time . | . . . . . . . Parts Recycled . | . . . . . . . Recycled Matter . | . . . . . . . Retrieved Matter . | . . . . . . . Retrieved Components . | . . . . . . . Parts Scanalyzed . | . . . . . . . Part Schematics Acquired . | . . . . . . . Parts Damaged . | . . . . . . . Bothacking | -11 -10 -10 -8 -7 -7 -7 ------------ Run | Yrd Mat Sub Mat Fac Was Fac Used RIF Installer . | . . . . . . . Robots Hacked . | . . . . . . . Non-combat . | . . . . . . . Combat . | . . . . . . . Robot Hacks Applied . | . . . . . . . Relay Couplers Released . | . . . . . . . Fabnet Peak Effective % . | . . . . . . . Robots Rewired . | . . . . . . . Allies Hacked . | . . . . . . . Hacks Repelled . | . . . . . . . Allies | -11 -10 -10 -8 -7 -7 -7 -------- Run | Yrd Mat Sub Mat Fac Was Fac Total Allies 19 | . . . . . 19 . Largest Group 19 | . . . . . 19 . Highest-Rated Group 475 | . . . . . 475 . Highest-Rated Ally 35 | . . . . . 35 . Total Orders . | . . . . . . . Ally Attacks 126 | . . . . . 126 . Total Damage 4516 | . . . . . 4516 . Kills 11 | . . . . . 11 . Allies Corrupted . | . . . . . . . Allies Melted . | . . . . . . . Intel | -11 -10 -10 -8 -7 -7 -7 ------- Run | Yrd Mat Sub Mat Fac Was Fac Active Infowar (turns) 1222 | . . 1106 . . . 116 Terrain 114 | . . . . . . 114 Seismic 1106 | . . 1106 . . . . ECM 2 | . . . . . . 2 Robot Analysis Total 4 | . 3 . 1 . . . Derelict Logs Recovered . | . . . . . . . Drone Launches . | . . . . . . . Drone Recoveries . | . . . . . . . Exploration | -11 -10 -10 -8 -7 -7 -7 ------------- Run | Yrd Mat Sub Mat Fac Was Fac Turns Passed 4445 | 289 1626 1717 293 198 180 142 Spaces Moved 2286 | 133 630 523 197 154 286 363 Core 145 | 10 . . . . 135 . Treads 1264 | 123 630 511 . . . . Legs . | . . . . . . . Wheels 389 | . . 12 197 154 26 . Hover . | . . . . . . . Flight 488 | . . . . . 125 363 Fastest Speed 23 | 50 160 215 125 125 24 23 Average Speed 174 | 157 227 317 138 127 42 23 Slowest Speed 320 | 200 320 320 215 155 100 26 Overloaded Moves . | . . . . . . . Propulsion Burnouts . | . . . . . . . Robots Hopped 4 | . . . . . . 4 Potential Cave-ins . | . . . . . . . Cave-ins Triggered . | . . . . . . . Exploration Rate (%) 38 | 6 89 37 28 7 93 11 Regions Visited 6 Branch Regions 1 Pre-discovered Areas . | . . . . . . . Known Exits Taken . | . . . . . . . Unknown Exits Taken 4 | 1 1 1 1 . . . Scrap Searched 3 | . . 3 . . . . Spaces Dug 5 | . 5 . . . . . Terrain Destroyed 5 | . 5 . . . . . Melee . | . . . . . . . Projectile 5 | . 5 . . . . . AOE . | . . . . . . . Terrain Rammed . | . . . . . . . Walls Destroyed . | . . . . . . . Machines Disabled . | . . . . . . . Actions | -11 -10 -10 -8 -7 -7 -7 --------- Run | Yrd Mat Sub Mat Fac Was Fac Total 2602 | 167 747 550 219 156 347 416 Wait 105 | . 46 . 2 . 18 39 Move 2274 | 132 629 522 196 154 285 356 Hop 3 | . . . . . . 3 Pick Up 49 | 5 19 5 7 1 6 6 Fast Attach 22 | 6 1 1 2 . 9 3 Attach 16 | . 1 3 2 1 6 3 Detach 6 | . . 2 . . 4 . Swap 12 | . 5 4 3 . . . Drop 35 | . 4 1 6 . 18 6 Fire 80 | 24 42 12 1 . 1 . Melee . | . . . . . . . Ram . | . . . . . . . Kick . | . . . . . . . Crush . | . . . . . . . Escape Stasis . | . . . . . . . Rewire . | . . . . . . . Trap . | . . . . . . . Miscellaneous . | . . . . . . . Route ------- -11/Scrapyard -10/Materials (discovered 4 exits: [*Mat x3] / *Sub) -10/Subcaves -8/Materials -7/Factory -7/Waste -7/Factory (discovered 2 exits: Low x2) History --------- Turn | Location | Event 16 | -11/Scrapyard | Discovered new exit (range 15) 290 | -11/Scrapyard | Entered Materials 310 | -10/Materials | Build established: Mutant 826 | -10/Materials | Discovered new exit (range 16) 963 | -10/Materials | Discovered new exit (range 6) 1505 | -10/Materials | Discovered new exit (range 4) 1674 | -10/Materials | Discovered new exit (range 9) 1916 | -10/Materials | Entered Subcaves 2069 | -10/Subcaves | A swath of the cavern ceiling suddenly collapsed 2345 | -10/Subcaves | A swath of the cavern ceiling suddenly collapsed 2443 | -10/Subcaves | Shifting Twisted Machinery released Battle Cannon 2756 | -10/Subcaves | Disturbed a concealed Subdweller 3228 | -10/Subcaves | Visited 4L-MR0's lab 3249 | -10/Subcaves | Found Prototype Device 3250 | -10/Subcaves | Identified Sfc. Transmogrifier 3266 | -10/Subcaves | Found Power Bank 3542 | -10/Subcaves | Discovered new exit (range 10) 3633 | -10/Subcaves | Entered Materials 3633 | -8/Materials | Evolved 4 slots: Propulsion x2, Utility x2 3901 | -8/Materials | Discovered new exit (range 15) 3926 | -8/Materials | Entered Factory 3926 | -7/Factory | Evolved 2 slots: Propulsion x1, Utility x1 3989 | -7/Factory | Discovered new exit (range 14) 4124 | -7/Factory | Sucked down chute 4124 | -7/Factory | Entered Waste 4156 | -7/Waste | Spotted C-40 Crusher 4175 | -7/Waste | Spotted C-40 Crusher 4187 | -7/Waste | Spotted C-40 Crusher 4191 | -7/Waste | Spotted C-40 Crusher 4192 | -7/Waste | Spotted C-40 Crusher 4193 | -7/Waste | Crushed by Compactor (1 part destroyed, 2 dropped) 4200 | -7/Waste | Warlord forces began an assault 4204 | -7/Waste | Allies destroyed C-40 Crusher 4213 | -7/Waste | Allies destroyed C-40 Crusher 4254 | -7/Waste | Lost 6 allies 4261 | -7/Waste | Spotted C-40 Crusher 4270 | -7/Waste | Allies destroyed C-40 Crusher 4291 | -7/Waste | Discovered new exit (range 15) 4304 | -7/Waste | Entered Factory 4438 | -7/Factory | Identified exit to Lower Caves 4446 | -7/Factory | Self-destructed Last Messages --------------- 04385_ Acquired Imp. Medium Armor Plating. 04397_ Triggered Alarm Trap. 04397_ An alarm sounds. 04397_ ALERT: Alarm triggered, dispatching investigation squad. 04398_ Dropped Hardlight Generator. 04398_ Acquired Imp. Terrain Scan Processor. 04399_ Dropped Hrd. Medium Armor Plating. 04401_ Acquired Hrd. Medium Armor Plating. 04406_ Connecting with Terminal... 04413_ Dropped Backup Power III. 04414_ Acquired Nuclear Core. 04417_ Dropped Huge Storage Unit. 04417_ Acquired Component Analysis Suite. 04438_ Connecting with Terminal... >>Access(Branch) Found 2 branch access points: (152,121) Lower Caves (114,74) Lower Caves Map updated. Map ----- +----------------------------------------------------+ | ?????????????????????????????????????????????????? | | ?????????????????????????????????????????????????? | | ?????????????????????????????????????????????????? | | ?????????????????????????????????????????????????? | | ?????????????????????????????????????????????????? | | ?????????????????????????????????????????????????? | | ?????????????????????????????????????????????????? | | ?????????????????????????????????????????????????? | | ?????????????????????????????????????????????#???? | | ?????????????????????????????????????????????????? | | ???????????????????????????? ????????????????????? | | ?????????????????????????????????????????????????? | | ???????????????????????????????#??#???????#??????? | | ?????????????????????????????????????????????????? | | ??????????????????????????##########????#????????? | | ??????????????????????????# #?????#?????#?? | | ??????????????????????????# #??#???????#?#? | | ??????????????????????????# ########?????#? | | ??????????????????????????# #? #??????? | | ??????????????????????????# #? ! #??????? | | ?????????????????????????## #?? #?????#? | | ??????????????????????#???+ #?? #?????#? | | ??????????????????????#g??? ] #??? ???????? | | ?????????????????????## #?? ????? ######## | | ?????????????????????# ###+##+########+## | | ??????????#??????????+ " @ a ## | | ?????????????????????# ############### ## | | ?????????????????????## #??????##???##?# ## | | ??????????????????????# ????#????#??#??# ## | | ??????????????????????#?????#?????#???## ## | | ?????????????????????????############### #?? | | ??????????????????????????# ! + #? | | ??????????????????????????# # #?? ? | | ??????????????????????????# # ######### | | ??????????????????????????# # | | ??????????????????????????# # | | ??????????????????????????# """ """ + | | ???????????????????? ????????"" """ "" # | | ????????????????????? ? ?????"" """ "" # | | ???????????????????????????? "" "" T" ####+###### | | ?????????????????????????#?? "" "" "" # # | | ???????????????????????????? "" # """"" # | | ??????????????????????????? # """"" # | | ??????????????????????????############## """ # | | ???????????????????????? ?? ??????#????# ! # | | ???????????????????????????? ? ?? ?????# = *# | | ?????????????????????????? "??????#??#?# =* # | | ???????????????????????????G??????##???# * # | | ????????????????????????????"???????#??########### | | ????????????????????????????????? ?##??##?#??##??# | +----------------------------------------------------+ Best States ------------- Heat Dissipation 34 Energy Generation 14 Energy Capacity 275 Matter Stores 300 Matter Capacity 300 Sight Range 16 Terrain Scan Range 16 Terrain Scan Density 110 ECM Strength 2 Armor Coverage 530 Evasion (%) 65 Recoil Reduction 2 Defensive Hacking 10 Item Schematics ----------------- None Robot Schematics ------------------ None Fabricated ------------ Nothing Repaired ---------- Nothing Studied --------- Cesium-ion Thruster | -7/Factory | Hacked Alien Tech Used ----------------- None Achievements -------------- Mistaken Identity Physics Hates This One Trick Challenges ------------ None Game ------ Seed QuantumTerrorDissipator Manual? 0 Play Time 00:30:05 Cumulative 126.3 hours Start 2026.07.29 @ 11:36:32 End 2026.07.29 @ 12:09:09 Sessions 1 Manual Loads 0 Difficulty Rogue Special Mode None Game No. 141 Rogue 87 Adventurer 54 Explorer 0 Win Type - Total 3 Types 2/0/0/1/0/0/0/0/0/0 Lore% 54 Gallery% 51 Achievement% 46 Wizard Run 0 Options --------- Layout 1 ASCII 0 Keyboard 0 Movement Mouse Keybinds 1 Fullscreen 1 Font 32/Tamsyn Map View 50x35 Zoom Use 0% Tactical HUD 1 Map Filters NONE Filters NONE Steam 1 RUN: 25ed1d8a-f693-4936-aafd-fe5303f29e7a